fUST/lending_fUST_20240201
["ID","MTS","AMOUNT","RATE_DAILY","PERIOD"]
[313105711,1706752243825,-500.0,0.00020269,2]
[313105712,1706752243835,-500.0,0.00020269,2]
[313105713,1706752243844,-157.18674127,0.00020269,2]
[313105714,1706752243855,-500.0,0.00020269,2]
[313105715,1706752243864,-1324.77,0.00020273,2]
[313105716,1706752243874,-464.42696326,0.00020273,2]
[313105717,1706752243883,-153.0,0.00020274,2]
[313105718,1706752243893,-153.0,0.00020274,2]
[313105719,1706752243903,-153.0,0.00020274,2]
[313105720,1706752243913,-153.0,0.00020274,2]
[313105721,1706752243923,-153.0,0.00020274,2]
[313105722,1706752243933,-156.6688347,0.00020274,2]
[313105723,1706752243943,-164.486678,0.00020274,2]
[313105724,1706752243953,-199.6142226,0.000203,2]
[313105725,1706752243963,-153.0,0.000203,2]
[313105726,1706752243973,-153.0,0.000203,2]
[313105727,1706752243983,-199.6142226,0.000203,2]
[313105728,1706752243998,-199.6142226,0.000203,2]
[313105729,1706752244009,-153.0,0.000203,2]
[313105730,1706752244018,-153.0,0.000203,2]
[313105731,1706752244030,-312.5134984,0.000203,2]
[313105732,1706752244040,-451.76511987,0.00020437,2]
[313105733,1706752244050,-151.0,0.00020437,2]
[313105734,1706752244059,-151.165955,0.00020524,2]
[313105735,1706752244071,-151.0,0.00020524,2]
[313105736,1706752244080,-1648.17,0.00020524,2]
[313105737,1706752244090,-2141.47,0.00020524,2]
[313105738,1706752244099,-170.902729,0.00020524,2]
[313105739,1706752244110,-170.902729,0.00020524,2]
[313105740,1706752244120,-521.516403,0.00020524,2]
[313105741,1706752244130,-521.516403,0.00020524,2]
[313105742,1706752244139,-150.0,0.0002053,2]
[313105743,1706752244149,-365.91568885,0.00020534,2]
[313105744,1706752244158,-500.0,0.00020534,2]
[313105745,1706752244167,-500.0,0.00020534,2]
[313105746,1706752244176,-539.29,0.00020534,2]
[313105747,1706752244185,-500.0,0.00020534,2]
[313105748,1706752244194,-431.78318029,0.00020534,2]
[313105749,1706752244204,-531.97,0.00020534,2]
[313105750,1706752244214,-500.0,0.00020534,2]
[313105751,1706752244224,-500.0,0.00020534,2]
[313105752,1706752244234,-500.0,0.00020534,2]
[313105753,1706752244249,-500.0,0.00020534,2]
[313105754,1706752244258,-500.0,0.00020534,2]
[313105755,1706752244268,-526.12,0.00020537,2]
[313105756,1706752244278,-151.0,0.00020537,2]
[313105757,1706752244288,-151.0,0.00020537,2]
[313105758,1706752244297,-500.0,0.00020537,2]
[313105759,1706752244307,-151.870359,0.00020537,2]
[313105760,1706752244317,-170.902729,0.00020537,2]
[313105761,1706752244328,-170.902729,0.00020537,2]
[313105762,1706752244338,-882.54,0.00020543,2]
[313105763,1706752244349,-2946.47,0.00020543,2]
[313105764,1706752244359,-521.516403,0.00020543,2]
[313105765,1706752244368,-521.516403,0.00020543,2]
[313105766,1706752244378,-586.7,0.00020543,2]
[313105767,1706752244388,-500.0,0.00020543,2]
[313105768,1706752244398,-500.0,0.00020543,2]
[313105769,1706752244409,-500.0,0.00020543,2]
[313105770,1706752244420,-1324.77,0.00020547,2]
[313105771,1706752244429,-188.05888108,0.00020703,2]
[313105772,1706752244440,-1648.17,0.00020798,2]
[313105773,1706752244449,-2141.47,0.00020798,2]
[313105774,1706752244459,-500.0,0.00020808,2]
[313105775,1706752244468,-500.0,0.00020808,2]
[313105776,1706752244478,-539.29,0.00020808,2]
[313105777,1706752244491,-500.0,0.00020808,2]
[313105778,1706752244500,-531.97,0.00020808,2]
[313105779,1706752244510,-500.0,0.00020808,2]
[313105780,1706752244519,-500.0,0.00020808,2]
[313105781,1706752244529,-500.0,0.00020808,2]
[313105782,1706752244539,-500.0,0.00020808,2]
[313105783,1706752244549,-500.0,0.00020808,2]
[313105784,1706752244558,-526.12,0.00020811,2]
[313105785,1706752244568,-154.981605,0.00020811,2]
[313105786,1706752244577,-151.0,0.00020811,2]
[313105787,1706752244586,-500.0,0.00020811,2]
[313105788,1706752244596,-170.902729,0.00020811,2]
[313105789,1706752244605,-170.902729,0.00020811,2]
[313105790,1706752244616,-521.516403,0.00020811,2]
[313105791,1706752244625,-521.516403,0.00020811,2]
[313105792,1706752244635,-882.54,0.00020817,2]
[313105793,1706752244644,-2946.47,0.00020817,2]
[313105794,1706752244654,-586.7,0.00020817,2]
[313105795,1706752244663,-500.0,0.00020817,2]
[313105796,1706752244673,-500.0,0.00020817,2]
[313105797,1706752244683,-500.0,0.00020817,2]
[313105798,1706752244693,-21703.07731623,0.00020818,2]
[313105799,1706752244702,-151.0,0.00020818,2]
[313105800,1706752244712,-170.902729,0.00020818,2]
[313105801,1706752244722,-170.902729,0.00020818,2]
[313105802,1706752244731,-521.516403,0.00020818,2]
[313105803,1706752244743,-521.516403,0.00020818,2]
[313105804,1706752244753,-188.24208135,0.0002082,2]
[313105805,1706752244763,-1324.77,0.00020821,2]
[313105806,1706752244772,-303.86973332,0.000209,2]
[313105807,1706752244782,-19723.27746481,0.00020999,2]
[313105808,1706752244791,-5552.6499426,0.00020999,2]
[313105809,1706752244805,-14930.60023285,0.00020999,2]
[313105810,1706752244815,-151.0,0.00020999,2]
[313105811,1706752244824,-170.902729,0.00020999,2]
[313105812,1706752244834,-170.902729,0.00020999,2]
[313105813,1706752244843,-170.902729,0.00020999,2]
[313105814,1706752244853,-170.902729,0.00020999,2]
[313105815,1706752244862,-521.516403,0.00020999,2]
[313105816,1706752244871,-521.516403,0.00020999,2]
[313105817,1706752244880,-521.516403,0.00020999,2]
[313105818,1706752244890,-521.516403,0.00020999,2]
[313105819,1706752244899,-233.33184309,0.00021,2]
[313105820,1706752244908,-13786.94397085,0.00021,2]
[313105821,1706752244918,-9874.91809445,0.00021,2]
[313105822,1706752244927,-194.62756597,0.00021,2]
[313105823,1706752244936,-28971.86625467,0.00021,2]
[313105824,1706752244945,-170.902729,0.00021,2]
[313105825,1706752244954,-170.902729,0.00021,2]
[313105826,1706752244963,-170.902729,0.00021,2]
[313105827,1706752244972,-170.902729,0.00021,2]
[313105828,1706752244982,-521.516403,0.00021,2]
[313105829,1706752244994,-521.516403,0.00021,2]
[313105830,1706752245004,-521.516403,0.00021,2]
[313105831,1706752245013,-521.516403,0.00021,2]
[313105832,1706752245024,-206.01889115,0.00021051,2]
[313105833,1706752245033,-219.1209742,0.00021051,2]
[313105834,1706752245043,-437.91633364,0.00021051,2]
[313105835,1706752245053,-530.37062837,0.00021051,2]
[313105836,1706752245066,-14324.87449373,0.00021052,2]
[313105837,1706752245075,-15673.77775399,0.00021052,2]
[313105838,1706752245085,-5000.0,0.00021052,2]
[313105839,1706752245095,-2675.27990804,0.00021052,2]
[313105840,1706752245108,-474.0,0.00021052,2]
[313105841,1706752245120,-834.24980271,0.00021052,2]
[313105861,1706752245964,-1016.47028925,0.00021052,2]
[313105862,1706752245974,-5000.0,0.00021052,2]
[313105864,1706752245984,-2155.51723914,0.00021052,2]
[313105866,1706752245996,-1714.94667189,0.00021052,2]
[313105949,1706753431952,-658.31347731,0.00018057,2]
[313105950,1706753432009,-1057.70724688,0.00018057,2]
[313105951,1706753432020,-1775.52200322,0.00018057,2]
[313105952,1706753432029,-4804.53099538,0.00018058,2]
[313105953,1706753432039,-7973.01503453,0.00018059,2]
[313105954,1706753432048,-24900.0,0.00018067,2]
[313105955,1706753432057,-219.722467,0.0001819,2]
[313105956,1706753432066,-155.0,0.00018935,2]
[313105957,1706753432075,-155.0,0.00018936,3]
[313105958,1706753432085,-2809.46261048,0.00018952,2]
[313105959,1706753432094,-1585.15053624,0.00019,2]
[313105960,1706753432104,-4462.07714442,0.0001917,2]
[313105961,1706753432116,-1502.99725774,0.0001917,2]
[313105962,1706753432126,-506.29394566,0.00019178,2]
[313105963,1706753432135,-500.0,0.00019178,2]
[313105964,1706753432143,-508.39907803,0.00019178,2]
[313105965,1706753432152,-500.0,0.00019178,2]
[313105966,1706753432162,-511.02425996,0.00019178,2]
[313105967,1706753432171,-500.0,0.00019178,2]
[313105968,1706753432180,-772.69,0.00019178,2]
[313105969,1706753432189,-2573.7,0.00019178,2]
[313105970,1706753432198,-500.0,0.00019178,2]
[313105972,1706753432207,-506.52548257,0.00019178,2]
[313105973,1706753432216,-500.0,0.00019178,2]
[313105974,1706753432225,-1103.98,0.00019178,2]
[313105975,1706753432234,-519.12,0.00019178,2]
[313105976,1706753432243,-500.0,0.00019178,2]
[313105977,1706753432252,-500.0,0.00019178,2]
[313105978,1706753432262,-503.79007863,0.00019178,2]
[313105979,1706753432271,-500.0,0.00019178,2]
[313105980,1706753432280,-512.51000546,0.00019178,2]
[313105981,1706753432289,-500.0,0.00019178,2]
[313105982,1706753432298,-504.58661955,0.00019178,2]
[313105983,1706753432307,-169.965633,0.00019208,2]
[313105984,1706753432316,-292.63524484,0.00019452,2]
[313105985,1706753432325,-772.69,0.00019452,2]
[313105986,1706753432334,-2573.7,0.00019452,2]
[313105987,1706753432343,-150.97208293,0.00019452,2]
[313105988,1706753432352,-500.0,0.00019452,2]
[313105989,1706753432361,-1103.98,0.00019452,2]
[313105990,1706753432373,-519.12,0.00019452,2]
[313105991,1706753432382,-502.80790032,0.00019452,2]
[313105992,1706753432392,-500.0,0.00019452,2]
[313105993,1706753432401,-500.0,0.00019452,2]
[313105994,1706753432414,-500.0,0.00019452,2]
[313105995,1706753432423,-772.69,0.00019726,2]
[313105996,1706753432432,-2573.7,0.00019726,2]
[313105997,1706753432441,-500.0,0.00019726,2]
[313105998,1706753432450,-1103.98,0.00019726,2]
[313105999,1706753432459,-519.12,0.00019726,2]
[313106000,1706753432468,-500.0,0.00019726,2]
[313106001,1706753432478,-500.0,0.00019726,2]
[313106002,1706753432488,-500.0,0.00019726,2]
[313106003,1706753432497,-187.71315844,0.00019899,2]
[313106004,1706753432506,-302.26519309,0.00019998,2]
[313106005,1706753432515,-500.0,0.00019998,2]
[313106006,1706753432524,-500.0,0.00019998,2]
[313106007,1706753432533,-500.0,0.00019998,2]
[313106008,1706753432542,-500.0,0.00019998,2]
[313106009,1706753432551,-505.97331896,0.00019998,2]
[313106010,1706753432560,-500.0,0.00019998,2]
[313106011,1706753432569,-500.0,0.00019998,2]
[313106012,1706753432578,-500.0,0.00019999,2]
[313106013,1706753432587,-500.0,0.00019999,2]
[313106014,1706753432596,-509.55570223,0.00019999,2]
[313106015,1706753432605,-500.0,0.00019999,2]
[313106016,1706753432618,-500.0,0.00019999,2]
[313106017,1706753432627,-500.0,0.00019999,2]
[313106018,1706753432637,-1200.31274669,0.0002,2]
[313106019,1706753432646,-40242.15204102,0.0002,2]
[313106020,1706753432655,-772.69,0.0002,2]
[313106021,1706753432665,-426.22155743,0.0002,2]
[313106022,1706753434472,280.0,0.0002185,7]
[313106036,1706753438097,-200.0,0.00019864,2]
[313106038,1706753438107,-2147.47844257,0.0002,2]
[313106040,1706753438116,-500.0,0.0002,2]
[313106042,1706753438128,-1103.98,0.0002,2]
[313106044,1706753438137,-519.12,0.0002,2]
[313106046,1706753438146,-500.0,0.0002,2]
[313106048,1706753438155,-500.0,0.0002,2]
[313106050,1706753438165,-500.0,0.0002,2]
[313106052,1706753438174,-500.0,0.00020272,2]
[313106054,1706753438183,-500.0,0.00020272,2]
[313106056,1706753438192,-500.0,0.00020272,2]
[313106058,1706753438202,-500.0,0.00020272,2]
[313106060,1706753438212,-500.0,0.00020272,2]
[313106062,1706753438222,-504.68941615,0.00020273,2]
[313106064,1706753438231,-500.0,0.00020273,2]
[313106066,1706753438239,-500.0,0.00020273,2]
[313106068,1706753438249,-772.69,0.00020273,2]
[313106070,1706753438258,-2573.7,0.00020273,2]
[313106072,1706753438267,-500.0,0.00020273,2]
[313106074,1706753438276,-1103.98,0.00020273,2]
[313106076,1706753438285,-519.12,0.00020273,2]
[313106078,1706753438294,-500.0,0.00020273,2]
[313106080,1706753438303,-500.0,0.00020273,2]
[313106082,1706753438312,-500.0,0.00020273,2]
[313106084,1706753438320,-187.71315844,0.00020426,2]
[313106086,1706753438330,-1509.3,0.00020542,2]
[313106087,1706753438339,-500.0,0.00020542,2]
[313106089,1706753438348,-1990.14,0.00020542,2]
[313106091,1706753438357,-500.0,0.00020546,2]
[313106093,1706753438366,-500.0,0.00020546,2]
[313106095,1706753438377,-500.0,0.00020546,2]
[313106097,1706753438386,-500.0,0.00020546,2]
[313106099,1706753438395,-500.0,0.00020546,2]
[313106101,1706753438405,-500.0,0.00020547,2]
[313106103,1706753438417,-500.0,0.00020547,2]
[313106105,1706753438426,-151.0,0.00020547,2]
[313106107,1706753438435,-249.961883,0.00020547,2]
[313106109,1706753438444,-157.011484,0.00020547,2]
[313106111,1706753438454,-152.659174,0.00020547,2]
[313106113,1706753438463,-772.69,0.00020547,2]
[313106115,1706753438472,-2573.7,0.00020547,2]
[313106117,1706753438481,-1580.710543,0.00020547,2]
[313106119,1706753438490,-1580.710543,0.00020547,2]
[313106121,1706753438499,-500.0,0.00020547,2]
[313106123,1706753438509,-1103.98,0.00020547,2]
[313106125,1706753438518,-519.12,0.00020547,2]
[313106127,1706753438527,-500.0,0.00020547,2]
[313106129,1706753438537,-500.0,0.00020547,2]
[313106131,1706753438546,-500.0,0.00020547,2]
[313106133,1706753438555,-489.92584283,0.00020718,2]
[313106135,1706753438564,-350.60896108,0.00020816,2]
[313106137,1706753438573,-1509.3,0.00020816,2]
[313106139,1706753438582,-1990.14,0.00020816,2]
[313106140,1706753438591,-635.64207882,0.00020817,2]
[313106142,1706753438599,-500.0,0.0002082,2]
[313106144,1706753438608,-500.0,0.0002082,2]
[313106146,1706753438617,-500.0,0.0002082,2]
[313106148,1706753438628,-500.0,0.0002082,2]
[313106150,1706753438639,-500.0,0.0002082,2]
[313106152,1706753438649,-500.0,0.00020821,2]
[313106154,1706753438658,-500.0,0.00020821,2]
[313106156,1706753438667,-151.0,0.00020821,2]
[313106158,1706753438676,-151.0,0.00020821,2]
[313106160,1706753438685,-151.0,0.00020821,2]
[313106162,1706753438695,-772.69,0.00020821,2]
[313106164,1706753438704,-2573.7,0.00020821,2]
[313106166,1706753438713,-1580.710543,0.00020821,2]
[313106168,1706753438722,-1580.710543,0.00020821,2]
[313106170,1706753438731,-500.0,0.00020821,2]
[313106172,1706753438740,-1103.98,0.00020821,2]
[313106174,1706753438749,-519.12,0.00020821,2]
[313106176,1706753438758,-1608.136418,0.00020821,2]
[313106178,1706753438767,-1608.136418,0.00020821,2]
[313106180,1706753438776,-500.0,0.00020821,2]
[313106182,1706753438785,-500.0,0.00020821,2]
[313106184,1706753438794,-500.0,0.00020821,2]
[313106186,1706753438804,-153.9082875,0.00020822,2]
[313106187,1706753438813,-153.0,0.00020822,2]
[313106189,1706753438823,-153.0,0.00020822,2]
[313106191,1706753438832,-6292.34,0.00020829,3]
[313106193,1706753438842,-151.0,0.00020839,2]
[313106195,1706753438851,-151.688273,0.00020839,2]
[313106197,1706753438860,-155.528036,0.00020839,2]
[313106199,1706753438871,-1608.136418,0.00020839,2]
[313106201,1706753438880,-1608.136418,0.00020839,2]
[313106203,1706753438889,-14963.74784658,0.0002084,2]
[313106205,1706753438899,-151.93956026,0.00020947,2]
[313106207,1706753438908,-151.0,0.00020952,2]
[313106209,1706753438917,-1580.710543,0.00020952,2]
[313106211,1706753438927,-1580.710543,0.00020952,2]
[313106213,1706753438937,-187.71315844,0.00020952,2]
[313106215,1706753438946,-17216.0962955,0.00021,2]
[313106217,1706753438956,-4154.07697543,0.00021,2]
[313106218,1706753438967,-151.0,0.00021,2]
[313106220,1706753438977,-151.0,0.00021,2]
[313106221,1706753438986,-248.687395,0.00021,2]
[313106222,1706753438995,-1580.710543,0.00021,2]
[313106223,1706753439005,-1580.710543,0.00021,2]
[313106224,1706753439014,-1608.136418,0.00021,2]
[313106225,1706753439023,-1608.136418,0.00021,2]
[313106226,1706753439033,-155.46826119,0.00021041,2]
[313106227,1706753439042,-367.26434854,0.00021049,2]
[313106228,1706753439051,-2724.21320407,0.0002105,2]
[313106229,1706753439061,-155.35064667,0.0002105,2]
[313106230,1706753439071,-691.29323781,0.0002105,2]
[313106231,1706753439080,-176.07121414,0.0002105,2]
[313106232,1706753439089,-2048.43548502,0.0002105,2]
[313106233,1706753439099,-263.55713778,0.0002105,2]
[313106234,1706753439108,-155.40309156,0.0002105,2]
[313106235,1706753439118,-1248.30683045,0.0002105,2]
[313106236,1706753439128,-471.98746665,0.0002105,2]
[313106237,1706753439137,-167.80837544,0.0002105,2]
[313106238,1706753439146,-153.948692,0.0002105,2]
[313106239,1706753439155,-151.0,0.0002105,2]
[313106240,1706753439164,-151.0,0.0002105,2]
[313106241,1706753439173,-1580.710543,0.0002105,2]
[313106242,1706753439182,-1580.710543,0.0002105,2]
[313106243,1706753439191,-1608.136418,0.0002105,2]
[313106244,1706753439200,-1608.136418,0.0002105,2]
[313106245,1706753439209,-155.13668518,0.00021051,2]
[313106253,1706753439300,-681.46601652,0.00021051,2]
[313106256,1706753439311,-3471.54254,0.00021052,2]
[313106258,1706753439320,-5000.0,0.00021052,2]
[313106260,1706753439329,-2411.70053073,0.00021052,2]
[313106262,1706753439339,-5000.0,0.00021052,2]
[313106264,1706753439348,-5000.0,0.00021052,2]
[313106266,1706753439357,-5000.0,0.00021052,2]
[313106268,1706753439366,-5000.0,0.00021052,2]
[313106270,1706753439376,-6677.40397208,0.00021052,2]
[313106272,1706753439385,-50000.0,0.00021052,2]
[313106274,1706753439394,-685.29221933,0.00021052,2]
[313106276,1706753439404,-2088.24989888,0.00021052,2]
[313106278,1706753439413,-284860.37823719,0.00021052,2]
[313106280,1706753439425,-6138.13119635,0.00021052,2]
[313106282,1706753439434,-300.0,0.00021052,2]
[313106284,1706753439443,-1829.31848174,0.00021052,2]
[313106286,1706753439451,-2124.47951031,0.00021052,2]
[313106288,1706753439460,-151.0,0.00021052,2]
[313106290,1706753439470,-151.0,0.00021052,2]
[313106291,1706753439479,-151.0,0.00021052,2]
[313106293,1706753439488,-151.0,0.00021052,2]
[313106295,1706753439500,-151.0,0.00021052,2]
[313106298,1706753439511,-151.0,0.00021052,2]
[313106299,1706753439520,-151.0,0.00021052,2]
[313106301,1706753439529,-200.23054,0.00021052,2]
[313106303,1706753439539,-826.28160833,0.00021052,2]
[313106305,1706753439548,-1580.710543,0.00021052,2]
[313106307,1706753439557,-1580.710543,0.00021052,2]
[313106309,1706753439566,-1580.710543,0.00021052,2]
[313106311,1706753439575,-1580.710543,0.00021052,2]
[313106313,1706753439584,-1580.710543,0.00021052,2]
[313106316,1706753439594,-1580.710543,0.00021052,2]
[313106317,1706753439603,-1580.710543,0.00021052,2]
[313106320,1706753439613,-1580.710543,0.00021052,2]
[313106321,1706753439623,-1608.136418,0.00021052,2]
[313106323,1706753439632,-1608.136418,0.00021052,2]
[313106325,1706753439642,-1608.136418,0.00021052,2]
[313106328,1706753439652,-1608.136418,0.00021052,2]
[313106330,1706753439661,-1608.136418,0.00021052,2]
[313106331,1706753439670,-1608.136418,0.00021052,2]
[313106334,1706753439680,-1608.136418,0.00021052,2]
[313106336,1706753439690,-1608.136418,0.00021052,2]
[313106338,1706753439698,-1940.86151608,0.00021052,2]
[313106340,1706753439708,-1509.3,0.0002109,2]
[313106342,1706753439716,-1990.14,0.0002109,2]
[313106344,1706753439725,-151.0,0.00021094,2]
[313106346,1706753439734,-1580.710543,0.00021094,2]
[313106348,1706753439743,-1580.710542,0.00021094,2]
[313106350,1706753439753,-500.0,0.00021094,2]
[313106352,1706753439763,-500.0,0.00021094,2]
[313106354,1706753439772,-500.0,0.00021094,2]
[313106356,1706753439780,-1608.136418,0.00021094,2]
[313106358,1706753439789,-500.0,0.00021094,2]
[313106359,1706753439798,-1608.136418,0.00021094,2]
[313106361,1706753439807,-500.0,0.00021094,2]
[313106363,1706753439816,-500.0,0.00021095,2]
[313106365,1706753439825,-500.0,0.00021095,2]
[313106367,1706753439834,-772.69,0.00021095,2]
[313106369,1706753439843,-2573.7,0.00021095,2]
[313106371,1706753439852,-500.0,0.00021095,2]
[313106373,1706753439861,-1103.98,0.00021095,2]
[313106375,1706753439871,-519.12,0.00021095,2]
[313106377,1706753439880,-500.0,0.00021095,2]
[313106380,1706753439890,-500.0,0.00021095,2]
[313106382,1706753439899,-500.0,0.00021095,2]
[313106384,1706753439908,-224.192,0.0002112,2]
[313106386,1706753439917,-224.192,0.0002112,2]
[313106387,1706753439926,-224.192,0.0002112,2]
[313106389,1706753439935,-224.192,0.0002112,2]
[313106391,1706753439944,-224.192,0.0002112,2]
[313106393,1706753439953,-1509.3,0.00021364,2]
[313106396,1706753439964,-1990.14,0.00021364,2]
[313106397,1706753439973,-500.0,0.00021368,2]
[313106400,1706753439982,-500.0,0.00021368,2]
[313106402,1706753439992,-500.0,0.00021368,2]
[313106404,1706753440001,-500.0,0.00021368,2]
[313106405,1706753440011,-500.0,0.00021368,2]
[313106407,1706753440020,-500.0,0.00021369,2]
[313106409,1706753440028,-500.0,0.00021369,2]
[313106411,1706753440038,-151.0,0.00021369,2]
[313106413,1706753440047,-772.69,0.00021369,2]
[313106415,1706753440056,-2573.7,0.00021369,2]
[313106417,1706753440066,-500.0,0.00021369,2]
[313106419,1706753440075,-1103.98,0.00021369,2]
[313106421,1706753440084,-519.12,0.00021369,2]
[313106423,1706753440094,-1608.136418,0.00021369,2]
[313106426,1706753440103,-1608.136422,0.00021369,2]
[313106427,1706753440113,-500.0,0.00021369,2]
[313106429,1706753440122,-500.0,0.00021369,2]
[313106431,1706753440131,-500.0,0.00021369,2]
[313106433,1706753440139,-818.38,0.0002156,2]
[313106435,1706753440148,-818.38,0.0002156,2]
[313106437,1706753440157,-818.38,0.0002156,2]
[313106439,1706753440167,-818.38,0.0002156,2]
[313106441,1706753440175,-818.38,0.0002156,2]
[313106443,1706753440184,-1509.3,0.00021638,2]
[313106445,1706753440193,-1990.14,0.00021638,2]
[313106447,1706753440202,-500.0,0.00021642,2]
[313106449,1706753440211,-500.0,0.00021642,2]
[313106451,1706753440221,-500.0,0.00021642,2]
[313106453,1706753440230,-500.0,0.00021642,2]
[313106455,1706753440238,-500.0,0.00021642,2]
[313106457,1706753440248,-500.0,0.00021643,2]
[313106459,1706753440257,-500.0,0.00021643,2]
[313106461,1706753440266,-772.69,0.00021643,2]
[313106463,1706753440275,-2573.7,0.00021643,2]
[313106465,1706753440284,-500.0,0.00021643,2]
[313106467,1706753440293,-1103.98,0.00021643,2]
[313106469,1706753440302,-519.12,0.00021643,2]
[313106471,1706753440311,-500.0,0.00021643,2]
[313106473,1706753440321,-500.0,0.00021643,2]
[313106476,1706753440333,-500.0,0.00021643,2]
[313106478,1706753440345,-151.0,0.0002166,2]
[313106481,1706753440357,-3000.0,0.000218,2]
[313106483,1706753440369,-1509.3,0.00021912,2]
[313106485,1706753440381,-1990.14,0.00021912,2]
[313106487,1706753440393,-500.0,0.00021916,2]
[313106489,1706753440403,-500.0,0.00021916,2]
[313106492,1706753440413,-500.0,0.00021916,2]
[313106494,1706753440426,-500.0,0.00021916,2]
[313106496,1706753440438,-500.0,0.00021916,2]
[313106498,1706753440448,-500.0,0.00021917,2]
[313106500,1706753440459,-500.0,0.00021917,2]
[313106503,1706753440471,-753.49232581,0.00021917,2]
[313106505,1706753440488,-19.19767419,0.00021917,2]
[313106508,1706753440500,-2573.7,0.00021917,2]
[313106510,1706753440511,-500.0,0.00021917,2]
[313106512,1706753440521,-1103.98,0.00021917,2]
[313106514,1706753440533,-519.12,0.00021917,2]
[313106517,1706753440544,-500.0,0.00021917,2]
[313106519,1706753440554,-500.0,0.00021917,2]
[313106521,1706753440564,-500.0,0.00021917,2]
[313106523,1706753440573,-166.666666,0.00021918,2]
[313106525,1706753440585,-153.7149124,0.00021918,2]
[313106527,1706753440596,-2037.54507979,0.00022,2]
[313106530,1706753440607,-3975.13505251,0.00022,2]
[313106532,1706753440618,-426.66199522,0.00022,2]
[313106534,1706753440630,-1509.3,0.00022186,2]
[313106536,1706753440641,-1990.14,0.00022186,2]
[313106539,1706753440651,-500.0,0.0002219,2]
[313106541,1706753440663,-500.0,0.0002219,2]
[313106543,1706753440674,-428.50622733,0.0002219,2]
[313106545,1706753440684,-500.0,0.0002219,2]
[313106547,1706753440693,-500.0,0.0002219,2]
[313106549,1706753440703,-500.0,0.00022191,2]
[313106552,1706753440714,-500.0,0.00022191,2]
[313106554,1706753440727,-772.69,0.00022191,2]
[313106556,1706753440738,-2573.7,0.00022191,2]
[313106558,1706753440748,-500.0,0.00022191,2]
[313106560,1706753440759,-1103.98,0.00022191,2]
[313106563,1706753440771,-519.12,0.00022191,2]
[313106565,1706753440782,-500.0,0.00022191,2]
[313106567,1706753440792,-500.0,0.00022191,2]
[313106569,1706753440803,-404.62339825,0.00022191,2]
[313106571,1706753440813,-158.2435006,0.000222,2]
[313106574,1706753440824,-154.98450155,0.000222,2]
[313106576,1706753440835,-154.98450155,0.000222,2]
[313106578,1706753440846,-166.666666,0.00022431,2]
[313106580,1706753440857,-1509.3,0.0002246,2]
[313106583,1706753440869,-1990.14,0.0002246,2]
[313106585,1706753440881,-500.0,0.00022464,2]
[313106587,1706753440892,-500.0,0.00022464,2]
[313106590,1706753440903,-500.0,0.00022464,2]
[313106592,1706753440914,-500.0,0.00022464,2]
[313106594,1706753440925,-161.68278901,0.00022465,2]
[313106596,1706753440937,-500.0,0.00022465,2]
[313106598,1706753440947,-772.69,0.00022465,2]
[313106600,1706753440957,-2573.7,0.00022465,2]
[313106603,1706753440966,-500.0,0.00022465,2]
[313106605,1706753440976,-1103.98,0.00022465,2]
[313106607,1706753440986,-519.12,0.00022465,2]
[313106609,1706753440997,-500.0,0.00022465,2]